bitfinex-derivatives/quotes_ETHF0:USTF0_20250410
["timestamp","ask_amount","ask_price","bid_price","bid_amount"]
[1744292310862,3.49322492,1572.2,1572.0,0.00956877]
[1744292311062,7.12003798,1572.3,1572.1,0.01454847]
[1744292311358,7.12003798,1572.3,1572.2,1.27271]
[1744292311563,7.4054629,1572.3,1572.1,0.01454847]
[1744292311759,3.18840204,1572.2,1572.0,0.00956877]
[1744292311965,1.28589961,1572.0,1571.4,0.6368]
[1744292312168,3.2078,1571.9,1571.6,1.27313]
[1744292312460,3.2078,1571.9,1571.3,97.7538]
[1744292312461,0.01298961,1571.6,1571.5,1.27328]
[1744292312664,0.01298961,1571.6,1571.1,0.6368]
[1744292312864,3.2078,1571.2,1570.7,97.117]
[1744292313159,3.23035838,1571.1,1570.7,97.117]
[1744292313361,0.02255838,1571.1,1571.0,1.27368]
[1744292313556,0.01298961,1571.0,1570.8,1.28338877]
[1744292313763,3.22078961,1571.0,1570.8,0.00956877]
[1744292313961,3.49664576,1571.0,1570.8,0.00956877]
[1744292314163,0.00342084,1570.8,1570.2,0.6368]
[1744292314465,4.482,1570.4,1570.1,1.27438]
[1744292314760,0.00342084,1570.1,1570.0,98.39147]
[1744292314974,8.4e-07,1570.1,1570.0,103.39147]
[1744292315156,8.4e-07,1570.1,1570.0,107.14687236]
[1744292315356,3.2078,1571.1,1570.3,3.18543]
[1744292315553,3.2078,1570.9,1570.8,1.27384]
[1744292315753,3.48365615,1571.1,1570.4,6.86314577]
[1744292315964,3.2078,1570.9,1570.7,1.27385]
[1744292316153,3.2078,1570.9,1570.7,1.2739]
[1744292316359,3.2078,1571.0,1570.5,3.2078]
[1744292316559,3.2078,1570.8,1570.6,0.00956877]
[1744292317063,0.27585615,1570.8,1570.7,1.27392]
[1744292317265,3.21736877,1571.0,1570.6,0.00956877]
[1744292317468,3.21736877,1571.0,1570.7,1.27392]
[1744292317469,3.2078,1570.8,1570.7,1.27392]
[1744292317965,3.2078,1570.8,1570.6,0.00956877]
[1744292317966,3.21736877,1571.0,1570.6,0.00956877]
[1744292318159,3.49322492,1571.0,1570.9,1.27376]
[1744292318360,3.49322492,1571.0,1570.6,0.00956877]
[1744292318556,3.2078,1570.8,1570.7,1.27392]
[1744292318761,0.28542492,1571.0,1570.9,1.27376]
[1744292319068,0.28542492,1571.0,1570.8,1.27379]
[1744292319269,0.28542492,1571.0,1570.9,1.27376]
[1744292319669,3.49322492,1571.0,1570.6,0.00956877]
[1744292319865,3.2078,1570.8,1570.7,1.27392]
[1744292320062,3.2078,1570.8,1570.6,0.00956877]
[1744292320263,4.75754615,1570.8,1570.6,0.00956877]
[1744292320458,3.48365615,1570.8,1570.7,1.28834269]
[1744292320663,0.27585615,1570.8,1570.7,1.28834269]
[1744292320964,3.21736877,1571.0,1570.8,1.27377]
[1744292321166,3.49322492,1571.0,1570.9,0.01920929]
[1744292321369,4.76690492,1571.0,1570.9,0.01920929]
[1744292321565,8.49322492,1571.0,1570.6,0.00956877]
[1744292321769,1.55910492,1571.0,1570.9,0.02399589]
[1744292322064,4.76690492,1571.0,1570.9,0.02399589]
[1744292322263,0.28542492,1571.0,1570.9,1.29775589]
[1744292322572,1.27332,1571.5,1571.0,3.1842]
[1744292322774,4.4696,1571.4,1571.2,1.27346]
[1744292322974,7.6774,1571.4,1571.3,1.27344]
[1744292323275,4.4696,1571.4,1571.3,1.27344]
[1744292323475,3.2078,1571.8,1571.7,1.27311]
[1744292323667,3.19481039,1571.8,1571.7,0.02399589]
[1744292323871,8.19481039,1571.8,1571.7,0.02399589]
[1744292324073,13.93744039,1571.8,1571.7,0.02399589]
[1744292324483,12.66441039,1571.8,1571.1,3.18387]
[1744292324669,3.2078,1571.6,1571.5,1.27328]
[1744292324977,1.27329,1571.5,1571.2,1.27345]
[1744292325167,0.01298961,1571.2,1570.7,7.05071]
[1744292325367,0.01298961,1571.2,1571.1,1.2736]
[1744292325569,7.6774,1571.5,1571.4,1.27336]
[1744292325875,0.00956877,1571.3,1571.2,1.27349]
[1744292326072,3.21736877,1571.3,1570.8,0.00956877]
[1744292326469,3.2078,1571.1,1570.8,0.00956877]
[1744292326783,4.48156,1570.9,1570.8,0.00956877]
[1744292327374,3.2078,1571.1,1571.0,1.27368]
[1744292327570,3.21736877,1571.3,1571.2,1.27352]
[1744292328079,8.21736877,1571.3,1570.9,3.2078]
[1744292328278,3.21736877,1571.3,1571.2,1.27352]
[1744292328677,8.21736877,1571.3,1570.8,0.00956877]
[1744292328881,3.2078,1571.0,1570.9,1.27376]
[1744292329073,0.00956877,1571.3,1571.0,3.1841]
[1744292329272,0.00956877,1571.3,1571.2,1.27352]
[1744292329476,0.00956877,1571.3,1571.1,1.27353]
[1744292329675,3.21736877,1571.3,1571.2,1.27352]
[1744292329867,0.00956877,1571.3,1571.2,1.27352]
[1744292330073,0.00956877,1571.3,1571.2,6.27352]
[1744292330074,8.77e-06,1571.3,1571.2,6.27352]
[1744292330279,8.77e-06,1571.3,1571.2,1.27352]
[1744292330770,4.72450877,1571.3,1570.8,3.19413877]
[1744292330970,3.2078,1571.2,1571.0,1.27361]
[1744292331175,4.7245,1571.1,1571.0,1.27361]
[1744292331371,4.7245,1571.1,1570.9,1.27368]
[1744292331575,3.2078,1571.0,1570.8,0.00956877]
[1744292331879,4.945,1570.9,1570.4,3.18543]
[1744292332180,3.2078,1570.5,1570.2,3.18567]
[1744292332380,3.2078,1570.5,1570.4,1.27417]
[1744292332582,3.2078,1570.8,1570.2,6.37145]
[1744292332781,3.2078,1571.2,1570.3,3.2078]
[1744292332978,8.77e-06,1570.7,1570.6,1.274]
[1744292333172,8.77e-06,1570.7,1570.6,98.374]
[1744292333378,8.77e-06,1570.7,1570.6,103.374]
[1744292334075,3.2078,1571.6,1571.5,1.27328]
[1744292334283,4.945,1571.6,1571.5,1.27328]
[1744292334584,3.2078,1571.9,1571.8,1.27303]
[1744292335975,3.2078,1571.9,1571.7,0.00956877]
[1744292336175,3.2078,1571.9,1571.8,1.27303]
[1744292336371,0.00956877,1572.0,1571.7,0.00956877]
[1744292336582,8.77e-06,1572.0,1571.9,1.27295]
[1744292336975,8.77e-06,1572.0,1571.9,13.36205]
[1744292337177,4.30268456,1572.1,1572.0,1.27287]
[1744292337377,3.2078,1573.1,1573.0,1.27206]
[1744292337582,15.84761227,1573.5,1573.1,1.27198]
[1744292337583,4.7157,1573.2,1573.1,1.27198]
[1744292337881,15.84761227,1573.5,1573.3,1.27182]
[1744292338081,12.20974527,1573.4,1573.3,1.27182]
[1744292338582,18.48154527,1573.4,1573.2,0.00953803]
[1744292338781,7.9235,1573.3,1573.2,0.00953803]
[1744292338984,7.9235,1573.3,1572.8,1.27218]
[1744292339171,3.2078,1573.0,1572.8,1.27218]
[1744292339376,3.2078,1573.0,1572.7,97.078]
[1744292339779,3.2078,1572.8,1572.7,97.078]
[1744292340074,3.2078,1572.8,1572.1,97.039]
[1744292340271,3.2078,1573.0,1572.1,97.039]
[1744292340474,3.2078,1573.0,1572.4,3.18137]
[1744292340681,0.00953803,1572.7,1572.6,1.27235]
[1744292340880,0.00953803,1572.7,1572.5,1.27244]
[1744292341081,0.00953803,1572.7,1572.3,3.21733803]
[1744292341290,3.2078,1572.5,1572.3,0.00953803]
[1744292341583,0.00953803,1572.7,1572.3,3.19105803]
[1744292341790,44.01733803,1572.7,1572.3,0.00953803]
[1744292342088,0.00953803,1572.7,1572.6,1.27238]
[1744292342381,1.27267,1572.4,1572.3,0.00953803]
[1744292342584,40.80953803,1572.7,1572.3,0.00953803]
[1744292342786,3.2078,1572.4,1572.3,0.00953803]
[1744292342982,3.2078,1572.4,1571.5,100.2328]
[1744292343284,3.2078,1572.2,1571.5,97.01201039]
[1744292343581,3.2078,1571.6,1571.2,9.81290798]
[1744292343787,4.48109,1571.7,1571.3,1.27352]
[1744292343981,3.2078,1571.5,1571.2,9.81290798]
[1744292344176,1.27345,1571.5,1571.3,0.00953803]
[1744292344478,3.2078,1571.4,1571.3,1.28309803]
[1744292344993,0.00953803,1571.7,1571.4,3.18372]
[1744292345186,0.00953803,1571.7,1571.6,1.27332]
[1744292345577,8.03e-06,1571.7,1571.6,1.27332]
[1744292345889,8.03e-06,1571.7,1571.6,6.27332]
[1744292346186,8.03e-06,1571.7,1571.6,1.27332]
[1744292346388,1.27337,1571.6,1571.3,1.28306803]
[1744292346684,3.20780803,1571.7,1571.3,0.00953803]
[1744292346886,3.20780803,1571.7,1571.4,3.2078]
[1744292346887,8.03e-06,1571.7,1571.4,3.2078]
[1744292347094,8.03e-06,1571.7,1571.6,4.48112]
[1744292347486,8.03e-06,1571.7,1571.6,10.11792]
[1744292347679,8.03e-06,1571.7,1571.6,10.24292344]
[1744292347982,3.2078,1572.6,1572.4,1.27264]
[1744292348184,3.19481039,1572.6,1572.0,6.3903]
[1744292348491,3.2078,1572.8,1572.7,1.27243]
[1744292348791,4.47993,1573.1,1572.8,1.27227]
[1744292348985,1.27227,1572.9,1572.5,4.6887]
[1744292349286,4.48007,1572.9,1572.8,0.00953803]
[1744292349476,4.48007,1572.9,1572.2,3.2078]
[1744292349477,1.27281,1572.3,1572.0,1.27295]
[1744292349783,1.27281,1572.3,1572.2,1.27284]
[1744292349784,3.2078,1572.3,1572.2,1.27284]
[1744292349976,3.2078,1572.5,1572.4,1.27265]
[1744292350578,3.2078,1572.5,1571.7,97.037]
[1744292350579,11.38929,1572.5,1571.7,97.037]
[1744292350889,3.2078,1572.1,1571.7,97.02401039]
[1744292351089,4.5749,1572.0,1571.9,1.28261803]
[1744292351285,4.48989803,1572.6,1572.1,1.27292]
[1744292351589,1.273,1572.0,1571.9,0.00953803]
[1744292351788,1.273,1572.0,1571.3,1.27354]
[1744292351789,3.18293,1571.8,1571.3,1.27354]
[1744292351984,3.2078,1571.5,1571.4,1.27348]
[1744292352184,1.27323,1571.8,1571.6,1.27328]
[1744292352386,3.2078,1572.3,1571.4,3.2078]
[1744292352690,6.39013,1572.1,1571.6,1.27328]
[1744292352992,3.2078,1571.7,1571.2,1.2736]
[1744292353191,40.80953803,1572.0,1570.8,1.2739]
[1744292353192,3.2078,1571.3,1570.8,1.2739]
[1744292353385,1.27399,1570.8,1570.6,1.27409]
[1744292353586,40.8,1570.9,1570.4,9.81290798]
[1744292353789,4.4814,1571.3,1570.8,3.18493]
[1744292353984,5.85035,1571.5,1570.9,3.18455]
[1744292354291,0.00953803,1571.2,1570.9,0.00953803]
[1744292354488,0.00953803,1571.2,1571.1,1.27373]
[1744292354690,8.21733803,1571.2,1570.9,0.00953803]
[1744292354993,3.18473,1570.9,1570.4,9.81290798]
[1744292355190,1.27421,1570.5,1570.4,2.25220798]
[1744292355387,3.2078,1570.8,1570.4,2.25220798]
[1744292355687,8.1452,1571.1,1570.4,2.25220798]
[1744292355890,3.2078,1570.9,1570.8,1.27396]
[1744292356086,0.00953803,1571.2,1571.0,1.27381]
[1744292356285,0.00953803,1571.2,1570.6,0.00953803]
[1744292356686,0.00953803,1571.2,1571.1,1.27373]
[1744292356890,8.03e-06,1571.2,1571.1,4.48153]
[1744292357081,8.03e-06,1571.2,1571.1,1.27373]
[1744292357888,8.03e-06,1571.2,1570.8,4.48172]
[1744292358087,8.03e-06,1571.2,1570.8,3.2078]
[1744292358289,1.27381,1571.0,1570.7,101.8111]
[1744292358494,8.03e-06,1571.2,1570.8,6.39273]
[1744292358693,1.27379,1571.1,1570.7,97.042]
[1744292358894,4.5458,1571.1,1571.0,1.27381]
[1744292359096,3.20780803,1571.2,1571.1,1.27373]
[1744292359292,3.20780803,1571.2,1570.7,98.31599]
[1744292359495,3.2078,1570.8,1570.7,1.27405]
[1744292359797,1.27405,1570.7,1570.6,0.00953803]
[1744292360003,5.81985,1570.7,1570.6,0.00953803]
[1744292360599,4.5458,1570.7,1570.6,0.00953803]
[1744292360786,4.5458,1570.7,1570.6,1.28366803]
[1744292361286,3.2078,1570.8,1570.6,0.00953803]
[1744292361486,1.27389,1570.9,1570.7,1.27398]
[1744292361791,1.27405,1570.7,1570.6,0.00953803]
[1744292361996,1.27405,1570.7,1569.8,3.18696]
[1744292361997,3.18534,1570.6,1569.8,3.18696]
[1744292362194,3.2078,1570.5,1569.8,4.5457]
[1744292362396,40.8,1570.7,1569.9,6.3945]
[1744292362700,1.27409,1570.7,1570.5,1.27417]
[1744292362891,3.2078,1570.8,1570.7,1.27399]
[1744292363091,3.2078,1570.8,1570.7,1.27405]
[1744292363293,3.21733803,1570.8,1570.7,1.27405]
[1744292363502,0.00953803,1570.8,1570.7,1.27405]
[1744292364401,1.27421,1570.5,1570.4,0.00953803]
[1744292364693,4.49133803,1570.8,1570.4,0.00953803]
[1744292364899,3.21733803,1570.8,1570.7,1.27405]
[1744292365295,5.0312,1571.4,1570.9,3.18464]
[1744292365598,44.0078,1571.3,1570.9,1.27382]
[1744292365792,5.0312,1571.2,1571.1,1.27373]
[1744292366195,7.24143777,1571.4,1571.3,1.27356]
[1744292366389,7.24143777,1571.4,1571.3,4.48136]
[1744292366796,7.24143777,1571.4,1571.2,0.00953803]
[1744292366995,7.24143777,1571.4,1571.3,1.27356]
[1744292367403,0.00953803,1571.5,1571.4,1.27348]
[1744292367595,12.06860425,1571.8,1571.7,1.27324]
[1744292367792,10.28004425,1571.8,1571.7,4.48104]
[1744292367993,6.24219425,1571.8,1571.7,9.48104]
[1744292368901,6.24219425,1571.8,1571.7,4.48104]
[1744292369101,6.24219425,1571.8,1571.7,9.48104]
[1744292369299,6.24219425,1571.8,1571.4,0.6368]
[1744292369504,4.55609425,1571.8,1571.7,4.48104]
[1744292369691,0.00953803,1571.9,1571.8,1.27316]
[1744292370005,0.00953803,1571.9,1571.8,6.0857]
[1744292370199,0.00953803,1571.9,1571.7,3.2078]
[1744292370396,0.00953803,1571.9,1571.8,1.27316]
[1744292370700,0.00953803,1571.9,1571.8,7.35886]
[1744292370898,0.00953803,1571.9,1571.8,12.35886]
[1744292371100,0.00953803,1571.9,1571.8,12.99566]
[1744292371101,8.03e-06,1571.9,1571.8,12.99566]
[1744292371301,8.03e-06,1571.9,1571.8,12.35886]
[1744292371500,40.8,1572.8,1571.8,12.39203592]
[1744292371798,5.8309,1572.7,1572.4,3.2078]
[1744292371990,4.9714,1573.1,1572.6,3.2078]
[1744292372190,4.7612,1573.6,1573.2,1.27203]
[1744292372392,5.8309,1573.6,1573.2,4.47983]
[1744292372597,14.48518872,1573.7,1573.2,4.47983]
[1744292372798,0.00953803,1573.4,1573.1,5.58033803]
[1744292372999,0.00953803,1573.4,1573.1,0.00953803]
[1744292373200,0.00953803,1573.4,1573.2,4.47983]
[1744292373406,9.65196912,1573.4,1573.3,1.27195]
[1744292373604,9.65196912,1573.4,1573.3,6.84275]
[1744292373810,8.08450912,1573.4,1573.3,11.84275]
[1744292374005,14.48518872,1573.9,1573.8,1.27154]
[1744292374305,13.58734227,1574.0,1573.9,1.27146]
[1744292374512,9.88399227,1574.0,1573.9,98.32446]
[1744292374803,7.17238227,1574.0,1573.9,98.32446]
[1744292375209,7.17238227,1574.0,1573.9,97.053]
[1744292375409,13.20948227,1574.0,1573.9,97.053]
[1744292375710,7.17238227,1574.0,1573.9,103.32446]
[1744292376708,12.17238227,1574.0,1573.6,3.2078]
[1744292377005,7.17238227,1574.0,1573.9,1.27146]
[1744292377209,7.17238227,1574.0,1573.8,3.2078]
[1744292377410,13.21428227,1574.0,1573.8,3.2078]
[1744292377709,14.48567227,1574.0,1573.8,3.2078]
[1744292377908,1.27146,1573.9,1573.6,4.47945]
[1744292378098,6.0419,1573.8,1573.6,3.2078]
[1744292378405,1.27166,1573.7,1573.4,3.2078]
[1744292378605,6.0419,1573.6,1573.4,1.27185]
[1744292378909,7.31367,1573.6,1573.1,100.22433803]
[1744292379114,6.0419,1573.6,1573.1,101.49638803]
[1744292379413,6.0419,1573.6,1573.1,1.28161803]
[1744292379602,1.27189,1573.4,1573.1,1.28161803]
[1744292379802,5.8078,1573.3,1573.2,1.27203]
[1744292380107,3.2078,1573.6,1573.1,0.00953803]
[1744292380305,1.27203,1573.2,1573.1,0.00953803]
[1744292380500,1.27203,1573.2,1572.6,3.2078]
[1744292380501,3.18031,1573.1,1572.6,3.2078]
[1744292380700,1.27233,1572.9,1572.6,4.48029]
[1744292380902,3.2078,1573.2,1572.6,3.2078]
[1744292381113,1.27259,1572.5,1572.4,14.46535412]
[1744292381301,45.28039,1572.5,1572.4,14.46535412]
[1744292381503,50.28039,1572.5,1572.4,14.46535412]
[1744292382208,1.27267,1572.4,1572.3,1e-08]
[1744292382413,1.27275,1572.3,1572.2,19.24763097]
[1744292382610,3.2078,1572.3,1571.1,3.2078]
[1744292382812,3.2078,1571.3,1571.1,11.27369508]
[1744292383110,3.2078,1571.6,1571.0,3.2078]
[1744292383411,3.2078,1571.9,1571.4,1.27344]
[1744292383616,0.00953803,1571.5,1571.4,1.27344]
[1744292383805,0.00953803,1571.5,1571.4,4.48124]
[1744292384114,0.00953803,1571.5,1571.4,14.48123508]
[1744292384410,3.2078,1572.2,1571.4,11.3914]
[1744292384602,3.2078,1572.2,1571.6,3.2078]
[1744292384808,4.48069,1572.2,1571.9,1.27305]
[1744292385115,3.2078,1572.2,1571.6,3.2078]
[1744292385410,1.27298,1572.1,1571.8,1.27313]
[1744292385603,1.27298,1572.1,1571.6,3.2078]
[1744292385604,0.00953803,1572.1,1571.9,3.2078]
[1744292385804,7.35361803,1572.1,1571.9,1.27308]
[1744292386006,6.08063803,1572.1,1572.0,1.273]
[1744292386203,0.00953803,1572.1,1571.8,5.9364]
[1744292386404,0.00953803,1572.1,1571.7,6.80172508]
[1744292386607,1.27316,1571.8,1571.7,0.00953803]
[1744292386816,1.27313,1571.9,1571.7,0.00953803]
[1744292387121,6.94626,1571.8,1571.7,0.00953803]
[1744292387613,15.15406,1571.8,1571.7,0.00953803]
[1744292387813,15.15406,1571.8,1571.7,8.03e-06]
[1744292388416,3.18323,1571.7,1570.9,5.9364]
[1744292388618,1.27355,1571.4,1571.3,3.2078]
[1744292388813,5.6731,1571.6,1571.5,1.2734]
[1744292389008,1.27335,1571.6,1571.4,7.15325]
[1744292389214,5.6065,1571.8,1571.4,12.67198705]
[1744292389419,6.8797,1571.8,1571.6,1.27329]
[1744292389613,1.27325,1571.7,1571.5,4.48114]
[1744292389814,5.6065,1571.8,1571.4,0.00953803]
[1744292390031,1.2734,1571.5,1571.4,0.00953803]
[1744292390314,8.8143,1571.8,1571.4,0.00953803]
[1744292390514,1.2734,1571.5,1571.4,3.21733803]
[1744292390715,1.2734,1571.5,1571.4,0.00953803]
[1744292390910,1.2734,1571.5,1571.1,1.27371]
[1744292390911,1.27361,1571.3,1571.1,1.2737]
[1744292391111,5.6065,1571.5,1571.1,6.79218705]
[1744292391419,5.6065,1571.5,1571.0,1.27381]
[1744292391718,1.27366,1571.2,1570.9,4.48166]
[1744292391919,8.79009,1571.5,1570.9,3.2078]
[1744292392115,0.00953803,1571.2,1571.1,3.2078]
[1744292392323,0.00953803,1571.2,1570.9,10.00952508]
[1744292392521,1.28318803,1571.2,1571.0,6.0208]
[1744292392720,1.27373,1571.1,1571.0,6.0208]
[1744292392915,0.00953803,1571.2,1571.0,14.08678705]
[1744292393224,0.00953803,1571.2,1571.1,4.48153]
[1744292393624,40.8,1571.7,1571.1,8.2078]
[1744292393922,3.2078,1571.6,1571.0,4.67260759]
[1744292394112,3.2078,1571.8,1571.2,3.18412]
[1744292394316,3.18207,1572.3,1571.6,3.2078]
[1744292394317,6.0579,1571.9,1571.6,3.2078]
[1744292394520,6.0579,1571.9,1571.1,5.03923248]
[1744292394521,1.27276,1572.3,1572.1,1.27286]
[1744292394717,6.0579,1572.4,1571.7,3.2078]
[1744292394917,0.01298961,1571.7,1571.6,4.48112]
[1744292395416,1.27322,1571.8,1571.6,1.27326]
[1744292395717,6.39052,1571.9,1571.5,0.00953803]
[1744292395917,1.27332,1571.6,1571.5,8.03e-06]
[1744292396124,6.27332,1571.6,1571.5,8.03e-06]
[1744292396324,11.96712,1571.6,1571.5,8.03e-06]
[1744292397926,1.27405,1570.7,1570.6,5.5133]
[1744292398120,1.27426,1570.5,1570.2,97.04]
[1744292398422,1.27451,1570.2,1570.0,1.27457]
[1744292398623,3.2078,1570.6,1570.3,1.27431]
[1744292398926,4.6663,1571.1,1570.1,3.2078]
[1744292398927,1.27376,1571.1,1570.6,3.18527]
[1744292399120,9.6779,1571.3,1570.7,9.6897]
[1744292399423,1.27393,1570.9,1570.7,9.6897]
[1744292399723,0.00953803,1571.0,1570.7,10.96369]
[1744292399921,1.27397,1570.8,1570.7,9.6897]
[1744292400219,6.47963803,1571.0,1570.4,3.2078]
[1744292400419,1.274,1570.8,1570.6,4.48186]
[1744292400619,6.47963803,1571.0,1570.9,1.27389]
[1744292400817,1.28335803,1571.0,1570.7,6.4819]
[1744292401017,0.00953803,1571.0,1570.7,6.4819]
[1744292401213,1.27397,1570.8,1570.7,6.4819]
[1744292401413,1.27429,1570.4,1570.3,0.00953803]
[1744292401727,3.2078,1570.2,1568.8,6.39659]
[1744292401922,3.2078,1570.2,1569.1,6.225]
[1744292401923,3.18734,1569.7,1569.1,6.225]
[1744292402114,1.27515,1569.4,1569.2,1.27525]
[1744292402321,1.27515,1569.4,1569.3,6.225]
[1744292402527,1.27515,1569.4,1568.3,3.19001]
[1744292402528,3.2078,1569.4,1568.3,3.19001]
[1744292402820,3.2078,1569.2,1569.1,1.27535]
[1744292403027,0.00953803,1569.5,1569.4,1.27511]
[1744292403225,1.27535,1569.1,1569.0,6.23453803]
[1744292403521,1.27522,1569.3,1569.1,1.27531]
[1744292403719,0.00953803,1569.5,1569.2,6.225]
[1744292404321,1.27513,1569.4,1569.2,7.50024]
[1744292404530,1.28459803,1569.5,1569.3,1.27516]
[1744292404715,1.28459803,1569.5,1569.2,6.225]
[1744292404921,8.03e-06,1569.5,1569.4,1.27511]
[1744292405120,8.03e-06,1569.5,1569.4,7.54401]
[1744292405321,8.03e-06,1569.5,1569.4,12.54401]
[1744292405522,9.5194124,1570.6,1569.6,3.18735]
[1744292405826,3.2078,1570.4,1569.8,1.27472]
[1744292406029,46.8841,1570.5,1569.9,6.2689]
[1744292406229,46.8841,1570.5,1569.9,9.4767]
[1744292406421,1.27439,1570.3,1570.0,1.27456]
[1744292406730,1.27444,1570.3,1570.1,6.2689]
[1744292406921,1.27454,1570.1,1570.0,0.00953803]
[1744292407723,1.27452,1570.2,1570.0,3.21733803]
[1744292407922,1.27453,1570.2,1570.1,6.3853]
[1744292408125,1.27446,1570.2,1570.1,6.3853]
[1744292408321,1.27454,1570.1,1570.0,0.00953803]
[1744292408828,6.27454,1570.1,1570.0,0.00953803]
[1744292409031,7.64414,1570.1,1570.0,0.00953803]
[1744292409228,12.64414,1570.1,1570.0,0.02770451]
[1744292409527,5.0,1570.1,1569.5,6.3853]
[1744292409722,3.2078,1570.0,1569.5,6.3853]
[1744292409926,1.27484,1569.8,1569.5,6.3853]
[1744292410124,1.27489,1569.7,1569.5,7.66031]
[1744292410318,1.27489,1569.7,1569.6,0.01816825]
[1744292410522,9.5774,1570.0,1569.6,0.01816825]
[1744292410821,1.27486,1569.7,1569.6,0.01816825]
[1744292411016,3.2078,1569.8,1569.6,0.01816825]
[1744292411221,3.2078,1569.8,1569.4,0.00953803]
[1744292411222,1.27503,1569.5,1569.4,0.00953803]
[1744292411822,48.40663,1569.5,1569.4,0.00953803]
[1744292412027,53.40663,1569.5,1569.4,8.03e-06]
[1744292412326,40.8,1569.5,1568.9,3.18879]
[1744292412536,40.8,1569.5,1569.0,6.5208]
[1744292412734,1.27535,1569.1,1569.0,6.5208]
[1744292413123,40.8,1569.5,1569.0,11.5208]
[1744292413332,40.8,1569.5,1569.2,1.27526]
[1744292413522,1.27519,1569.4,1569.0,9.7286]
[1744292413729,1.27535,1569.1,1569.0,6.5208]
[1744292413927,44.0078,1569.5,1569.0,9.70935]
[1744292414124,1.27528,1569.2,1569.0,7.79618]
[1744292414328,44.0078,1569.5,1569.0,6.5208]
[1744292414526,1.27519,1569.3,1569.1,1.2753]
[1744292414725,1.27519,1569.3,1569.2,6.2232]
[1744292415030,45.28285,1569.5,1569.3,1.27511]
[1744292415232,44.0078,1569.5,1569.2,6.2232]
[1744292415534,1.27516,1569.4,1569.2,6.2232]
[1744292415725,3.2078,1569.3,1568.7,3.2078]
[1744292415921,9.3002,1569.3,1568.9,6.2232]
[1744292416225,1.27517,1569.4,1569.2,1.27521]
[1744292416419,40.8,1569.5,1569.4,1.27511]
[1744292416625,0.00953803,1569.6,1569.5,1.27503]
[1744292416827,0.00953803,1569.6,1569.5,10.84123]
[1744292417028,1.27424,1570.5,1569.6,3.18737]
[1744292417330,3.18536,1570.6,1570.2,1.27442]
[1744292417527,3.18634,1570.2,1569.7,6.3584]
[1744292417828,1.27478,1569.8,1569.7,6.3584]
[1744292418128,1.27506,1569.5,1569.4,1.2751]
[1744292418434,1.27511,1569.4,1569.3,6.3584]
[1744292418634,1.27511,1569.4,1569.3,6.36793803]
[1744292418931,1.27511,1569.4,1569.3,0.00953803]
[1744292419326,1.27487,1569.7,1569.4,3.18775]
[1744292419528,1.27487,1569.7,1569.6,1.27491]
[1744292419833,1.27511,1569.4,1569.3,1.28472803]
[1744292420049,1.27492,1569.7,1569.5,1.27495]
[1744292420331,1.27486,1569.7,1569.6,6.0499]
[1744292420537,1.27511,1569.4,1569.3,0.00953803]
[1744292420929,0.00953803,1569.9,1569.8,1.27478]
[1744292421729,0.00953803,1569.9,1569.8,12.32468]
[1744292421931,3.2078,1570.6,1570.0,3.18638]
[1744292422125,1.27402,1570.8,1570.6,1.27412]
[1744292422326,1.27397,1570.8,1570.7,6.1647]
[1744292422628,3.2078,1570.9,1570.1,3.2078]
[1744292422629,3.18519,1570.7,1570.1,3.2078]
[1744292422833,9.43126,1570.8,1570.3,6.1647]
[1744292423025,1.27424,1570.5,1570.3,7.439]
[1744292423228,4.48204,1570.5,1570.4,8.03e-06]
[1744292423929,9.48204,1570.5,1570.4,8.03e-06]
[1744292424634,1.27486,1569.7,1569.6,6.1647]
[1744292425231,3.1868,1569.9,1569.3,4.8877]
[1744292425531,1.275,1569.6,1569.4,6.5473]
[1744292425736,1.275,1569.6,1569.5,1.27503]
[1744292426032,0.00953803,1569.8,1569.7,1.27486]
[1744292426232,0.00953803,1569.8,1569.7,4.48266]
[1744292426435,3.2078,1570.4,1569.7,9.48266]
[1744292426629,1.27478,1569.8,1569.4,7.94110803]
[1744292426832,1.27467,1570.0,1569.6,3.18735]
[1744292427036,3.1864,1570.1,1569.6,1.27486]
[1744292427234,3.18656,1570.0,1569.6,1.27491]
[1744292427550,0.00953803,1570.0,1569.9,4.4825]
[1744292427729,0.00953803,1570.0,1569.9,5.0]
[1744292427930,0.00953803,1570.0,1569.9,6.2747]
[1744292428229,0.00953803,1570.0,1569.6,3.2078]
[1744292428423,0.00953803,1570.0,1569.4,0.00953803]
[1744292428424,1.27503,1569.5,1569.4,0.00953803]
[1744292428827,42.07503,1569.5,1569.4,0.00953803]
[1744292429437,1.27488,1569.7,1569.4,8.21733803]
[1744292429634,1.27484,1569.8,1569.6,4.48271]
[1744292429838,1.28417803,1570.0,1569.6,8.2078]
[1744292430043,0.00953803,1570.0,1569.9,4.4825]
[1744292430532,0.00953803,1570.0,1569.7,9.7199]
[1744292430836,1.27503,1569.5,1569.4,0.00953803]
[1744292431239,0.00953803,1570.0,1569.4,5.00953803]
[1744292431535,0.00953803,1570.0,1569.5,3.2078]
[1744292431740,0.00953803,1570.0,1569.4,6.40507803]
[1744292431929,1.27503,1569.5,1569.4,0.00953803]
[1744292432234,1.27503,1569.5,1569.4,8.03e-06]
[1744292432435,1.27543,1569.0,1568.9,6.3658]
[1744292432629,3.18879,1568.9,1568.2,3.8454]
[1744292432827,1.27592,1568.4,1568.3,6.3658]
[1744292433230,8.2078,1568.4,1567.5,3.8462]
[1744292433432,1.27644,1567.8,1567.6,1.27657]
[1744292433630,3.19042,1568.1,1567.4,11.0865]
[1744292433830,3.2078,1567.8,1567.4,6.3658]
[1744292434035,3.2078,1567.6,1566.7,8.0924]
[1744292434232,97.171,1567.9,1566.7,8.0924]
[1744292434233,1.27682,1567.3,1566.7,8.0924]
[1744292434437,3.2078,1567.4,1566.8,6.1611]
[1744292434639,100.36185,1567.9,1566.8,6.1611]
[1744292434640,0.00956877,1567.2,1567.0,0.00956877]
[1744292434838,1.27698,1567.1,1567.0,0.00956877]